[Event "Fagernes Chess GM-Swiss 2024"]
[Site "Fagernes"]
[Date "2024.03.29"]
[Round "7.5"]
[White "Puranik, Abhimanyu"]
[Black "Blomqvist, Erik"]
[Result "1-0"]
[ECO "C83"]
[WhiteElo "2618"]
[BlackElo "2511"]
[Annotator "TA"]
[PlyCount "55"]
[EventDate "2024.03.25"]
[EventType "swiss"]
[EventCountry "NOR"]
[SourceTitle "playchess.com"]
[Source "ChessBase"]
[SourceQuality "1"]
[TimeControl "40/6000+30:2400+30"]

{[%evp 21,55,28,29,32,34,52,41,40,44,34,62,69,54,52,42,30,43,37,21,16,33,22,44,48,60,45,45,12,280,268,536,510,543,528,491,492]} 1. e4 {[%emt 0:00:15]} e5 {[%emt 0:00:10]} 2. Nf3 {[%emt 0:00:03]} Nc6 {[%emt 0:00:10]} 3. Bb5 {[%emt 0:00:04][%cal Bf1b5,Bb5a4,Ba4b3,Bb3c2,Bc2b1][%mdl 32]} a6 {[%emt 0:00:22]} 4. Ba4 {[%emt 0:00:03]} Nf6 {[%emt 0:00:12][%cal Bg8f6,Bf6e4,Be4c5][%mdl 32]} 5. O-O {[%emt 0:00:06]} Nxe4 {[%emt 0:00:20]} 6. d4 {[%emt 0:00:38]} b5 {[%emt 0:00:22]} 7. Bb3 {[%emt 0:00:04]} d5 {[%emt 0:00:15][%cal Bd7d5,Bd5d4,Bd4d3][%mdl 32]} 8. dxe5 {[%emt 0:00:05]} Be6 {[%emt 0:00:14]} 9. Nbd2 {[%emt 0:00:33]} Nc5 {[%emt 0:00:23]} 10. c3 {[%emt 0:00:04]} Be7 {[%emt 0:01:16]} 11. Bc2 {[%emt 0:05:52]} d4 {[%emt 0:01:36]} 12. Nb3 {[%emt 0:00:35]} d3 {[%emt 0:00:23]} 13. Bb1 {[%emt 0:00:03] Strongly threatening Nxc5.} Nxb3 {[%emt 0:00:19]} 14. axb3 {[%emt 0:00:04][%cal Ba2b3,Bb3b4,Bb4a5,Ba5a6][%mdl 32] White is slightly better.} Bf5 {[%emt 0:00:09]} 15. b4 {[%emt 0:00:25]} O-O {[%emt 0:00:25]} 16. h3 {[%emt 0:00:17]} Qd7 {[%emt 0:00:25]} 17. Bf4 {[%emt 0:00:42]} Rfd8 {[%emt 0:01:36]} 18. g4 {[%emt 0:03:49]} Bg6 {[%emt 0:01:27]} 19. Bg3 {[%emt 0:17:09]} a5 {[%emt 0:19:58]} 20. bxa5 {[%emt 0:00:37]} b4 {[%emt 0:08:53]} (20... Nxa5 21. e6 Qc8 (21... Qxe6 22. Re1 $16) (21... fxe6 22. Ne5 $16) 22. exf7+ Kf8 23. Re1 (23. Ne5 Nc4 $11)) 21. a6 {[%emt 0:03:07]} Qc8 {[%emt 0:37:14]} 22. Qa4 {[%emt 0:13:33]} Nb8 {[%emt 0:13:12][%cal Ra8a6]} 23. a7 $36 {[%emt 0:00:38][%mdl 2048] White is pushing.} (23. cxb4 $2 Rxa6 $19 (23... Nxa6 24. b5 $15) (23... Nxa6 24. e6 $17)) 23... Qb7 {[%emt 0:04:25]} 24. Nd4 {[%emt 0:08:36] e6 would now be deadly. Some like it hot} (24. axb8=R $2 Rdxb8 25. Nd2 Rxa4 26. Rxa4 Qc6 $19) 24... Bc5 $2 {[%emt 0:00:30][%mdl 8192] [#] A mistake that costs the game.} (24... c5 $1 $11 {and Black has nothing to worry.} 25. Nf5 (25. axb8=R $2 Rdxb8 26. Nf5 Rxa4 $19) 25... Bxf5 26. gxf5 Nc6) 25. e6 $1 $18 {[%emt 0:01:24]} (25. axb8=R $2 Rdxb8 26. Qd7 (26. Qc6 Rxa1 27. Qxc5 d2 $17) 26... Rxa1 27. Bxd3 Rba8 $19) 25... Rxa7 $2 {[%emt 0:17:55] [#]} (25... fxe6 {is a better defense.} 26. Nxe6 (26. axb8=Q Rdxb8 27. Qd7 Rxa1 $15) 26... Rxa7) 26. e7 $1 {[%emt 0:00:13][%mdl 512] White is clearly winning.} Rf8 {[%emt 0:00:28]} 27. e8=Q {[%emt 0:02:11]} Rxa4 {[%emt 0:00:42]} 28. Qxa4 {[%emt 0:00:05] Weighted Error Value: White=0.05 (flawless) /Black=0.47.  Loses game:     	---       	Black=1      Mistake:       	---       	Black=1      Inaccurate:     	White=1     	Black=1      OK:         	White=8     	Black=7      Best:        	White=2     	Black=2      Strong:       	White=1     	---        Brilliant:      	White=1     	---} 1-0

[Event "Fagernes Chess GM-Swiss 2024"]
[Site "Fagernes"]
[Date "2024.03.29"]
[Round "7.6"]
[White "Kvaloy, Aksel Bu"]
[Black "Amar, Elham"]
[Result "0-1"]
[ECO "E11"]
[WhiteElo "2454"]
[BlackElo "2567"]
[Annotator "TA"]
[PlyCount "78"]
[EventDate "2024.03.25"]
[EventType "swiss"]
[EventCountry "NOR"]
[SourceTitle "playchess.com"]
[Source "ChessBase"]
[SourceQuality "1"]
[TimeControl "40/6000+30:2400+30"]

{[%evp 14,78,7,0,27,24,30,0,0,8,22,13,31,8,4,8,46,27,36,33,38,13,50,54,79,16,37,-24,-13,-52,-27,-23,-5,-7,-14,-22,-16,-21,-17,-16,-16,-32,-21,-156,-152,-151,-148,-229,-231,-237,-246,-257,-264,-262,-251,-247,-231,-569,-588,-1114,-1093,-1895,-1841,-29990,-29991,-29991,-29992]} 1. d4 {[%emt 0:00:44]} Nf6 {[%emt 0:00:06]} 2. c4 {[%emt 0:00:13]} e6 {[%emt 0:00:06]} 3. g3 {[%emt 0:00:26]} d5 {[%emt 0:00:45]} 4. Bg2 {[%emt 0:00:23]} Bb4+ {[%emt 0:02:06]} 5. Bd2 {[%emt 0:00:34]} Be7 {[%emt 0:00:12]} 6. Nf3 {[%emt 0:00:23]} O-O {[%emt 0:00:24]} 7. O-O {[%emt 0:00:47]} c6 {[%emt 0:00:58]} 8. Qc2 {[%emt 0:00:22]} a5 {[%emt 0:00:41]} 9. Bf4 {[%emt 0:01:07]} dxc4 {[%emt 0:00:14]} 10. Bxb8 {[%emt 0:09:44]} Rxb8 {[%emt 0:00:07] Die Stellung ist ausgeglichen.} 11. Qxc4 {[%emt 0:00:04]} Nd5 {[%emt 0:03:08][%cal Oc6c5,Bf6d5,Bd5c7,Bc7b5,Bb5d4][%mdl 32]} 12. Nbd2 {[%emt 0:05:27]} Bd7 {[%emt 0:09:35][%cal Oc6c5,Bc8d7,Bd7e8,Be8f7,Bf7h5][%mdl 32]} 13. Ne4 {[%emt 0:05:37]} Be8 {[%emt 0:01:06]} 14. Rfd1 {[%emt 0:02:53]} f6 {[%emt 0:02:40]} 15. Nc5 {[%emt 0:02:58]} Bf7 {[%emt 0:01:21]} 16. e4 {[%emt 0:01:03]} Nc7 {[%emt 0:03:17][%cal Oe6e5]} 17. Rac1 {[%emt 0:02:22]} Bd6 {[%emt 0:10:53]} 18. a3 {[%emt 0:15:43][%cal Of3e5]} Qe7 {[%emt 0:17:03]} 19. Qc2 {[%emt 0:01:27]} (19. e5 $16 {Ne4 wäre nun fies.} Bxc5 20. exf6 (20. dxc5 Ra8 $16) (20. Qxc5 Qxc5 21. dxc5 Rfd8 $11) 20... gxf6 21. dxc5) 19... Bh5 {[%emt 0:04:37]} (19... Bxc5 {vereinfacht} 20. Qxc5 Qxc5 21. Rxc5 a4) 20. Na4 {[%emt 0:05:46]} (20. Rd3 $1 $14) 20... e5 $11 {[%emt 0:03:16]} 21. Qd3 {[%emt 0:22:16]} Nb5 {[%emt 0:10:38]} 22. d5 $1 {[%emt 0:04:58]} Bxf3 {[%emt 0:00:26]} 23. Bxf3 {[%emt 0:00:23]} Nd4 {[%emt 0:00:06]} 24. dxc6 {[%emt 0:00:37]} bxc6 {[%emt 0:00:05]} 25. Bg2 {[%emt 0:01:33]} Kh8 {[%emt 0:01:58]} 26. Qc4 {[%emt 0:04:01]} g6 {[%emt 0:01:47]} 27. Re1 {[%emt 0:03:16]} h5 {[%emt 0:01:22]} 28. h4 {[%emt 0:05:53]} (28. Kh1 $11) 28... g5 $17 {[%emt 0:01:09]} 29. Rc3 {[%emt 0:01:15]} gxh4 {[%emt 0:01:22] Schwarz steht aktiver.} 30. gxh4 {[%emt 0:00:13]} (30. Bh3 $17) 30... Rg8 $19 {[%emt 0:00:12] Droht ...f5 und aus.} 31. Ree3 {[%emt 0:03:48]} Rg4 {[%emt 0:02:13][%cal Of6f5]} 32. Rg3 {[%emt 0:00:30] [#]} f5 {[%emt 0:01:50]} (32... Rxh4 33. Rg6 $17) 33. exf5 {[%emt 0:04:06]} Rbg8 {[%emt 0:05:02]} (33... Qxh4 34. Qd3 $19) 34. Kf1 {[%emt 0:02:18]} Qxh4 {[%emt 0:04:10][%cal Rg4g3]} 35. Qf7 $2 {[%emt 0:01:57] [#]} (35. Bxc6 Nf3 (35... Nxf5 36. Rxg4 Rxg4 37. Qd5 $19) 36. Bxf3 Rxc4 37. Rxg8+ Kh7 (37... Kxg8 $2 38. Bd5+ Kf8 39. Rxc4 $19) 38. Rd8) 35... Rf8 $1 {[%emt 0:01:20]} 36. Qd7 {[%emt 0:00:51]} Nxf5 {[%emt 0:00:25]} ({Schlechter ist} 36... Rxf5 37. Qxd6 Qg5 (37... Rxg3 $2 {zu gefräßig.} 38. Qh6+ Kg8 39. Bd5+ cxd5 40. Rc8+ Kf7 41. Rc7+ $18) 38. Rxg4 hxg4 39. Ke1 $11 (39. Bxc6 Rxf2+ 40. Kxf2 Qd2+ 41. Kf1 Qd1+ 42. Kg2 Qd2+ 43. Kf1 Qd1+ 44. Kg2 Qe2+ 45. Kg1 Qd1+ 46. Kg2 $11) (39. Bxc6 Rxf2+ 40. Kxf2 Qd2+ 41. Kf1 Qe2+ 42. Kg1 Qe1+ 43. Kh2 Qd2+ 44. Kh1 Qe1+ 45. Kh2 Qd2+ 46. Kh1 Qd1+ 47. Kg2 Qd2+ 48. Kh1 $11)) 37. Rxg4 {[%emt 0:01:21]} Qxg4 {[%emt 0:02:49][%cal Rg4d1]} 38. Kg1 {[%emt 0:00:20]} Qd1+ {[%emt 0:00:25]} 39. Kh2 {[%emt 0:00:04]} e4+ {[%emt 0:00:05] Gewichteter Fehlerwert: Weiß=0.87/Schwarz=0.08 (makellos) .  Fehler:       	Weiß=5     	---        Ungenau:       	Weiß=3     	Schwarz=2     OK:         	Weiß=11    	Schwarz=8     Bester:       	---       	Schwarz=4     Stark:        	Weiß=1     	Schwarz=1} 0-1

[Event "Fagernes Chess GM-Swiss 2024"]
[Site "Fagernes"]
[Date "2024.03.29"]
[Round "7.7"]
[White "Pranav Anand"]
[Black "Elsness, Frode"]
[Result "1-0"]
[ECO "C78"]
[WhiteElo "2519"]
[BlackElo "2437"]
[Annotator "TA"]
[PlyCount "97"]
[EventDate "2024.03.25"]
[EventType "swiss"]
[EventCountry "NOR"]
[SourceTitle "playchess.com"]
[Source "ChessBase"]
[SourceQuality "1"]
[TimeControl "40/6000+30:2400+30"]

{[%evp 17,97,46,45,22,12,12,31,19,16,5,19,25,20,20,22,37,77,75,120,119,118,123,122,116,115,106,120,116,110,106,100,100,182,182,178,165,165,105,104,111,98,112,113,80,70,60,61,61,77,37,47,30,46,22,60,63,81,88,320,348,344,342,327,341,314,306,373,395,535,521,713,706,694,639,661,664,2005,647,661,648,633,574]} 1. e4 {[%emt 0:00:38]} e5 {[%emt 0:01:39]} 2. Nf3 {[%emt 0:00:10]} Nc6 {[%emt 0:00:02]} 3. Bb5 {[%emt 0:00:16][%cal Bf1b5,Bb5a4,Ba4b3][%mdl 32]} a6 {[%emt 0:00:05]} 4. Ba4 {[%emt 0:00:04]} Nf6 {[%emt 0:00:13]} 5. O-O {[%emt 0:00:08]} b5 {[%emt 0:00:13]} 6. Bb3 {[%emt 0:00:05]} Bc5 {[%emt 0:00:02]} 7. a4 {[%emt 0:00:21]} Rb8 {[%emt 0:00:09]} 8. c3 {[%emt 0:00:05]} d6 {[%emt 0:00:16]} 9. d4 {[%emt 0:00:06]} Bb6 {[%emt 0:00:10]} 10. a5 {[%emt 0:00:13]} Ba7 {[%emt 0:00:18]} 11. h3 {[%emt 0:00:06]} Bb7 {[%emt 0:01:55]} 12. Be3 {[%emt 0:00:12] d5 wäre nun fies. Weiß steht etwas besser.} Nxe4 {[%emt 0:01:24]} 13. Re1 {[%emt 0:00:48] Schwarz sollte d5 verhindern.} (13. d5 {wäre vielleicht verwirrender.} Bxe3 14. dxc6 Nxf2 15. Qe2) 13... Ne7 {[%emt 0:02:11]} 14. Nbd2 {[%emt 0:02:07]} Nxd2 {[%emt 0:05:31]} 15. Bxd2 {[%emt 0:00:39]} O-O $1 {[%emt 0:07:36]} 16. dxe5 {[%emt 0:01:02]} Ng6 {[%emt 0:16:38]} 17. Ng5 $1 {[%emt 0:32:05] Zielt auf Qh5 ab.} h6 {[%emt 0:34:23][%cal Og6e5] [#] Weiss muss nun ...Nxe5! beachten.} 18. Qh5 $1 {[%emt 0:16:15] Weiß steht aktiver.} Nxe5 {[%emt 0:12:56] [#]} 19. Rxe5 $1 {[%emt 0:00:26][%mdl 512]} dxe5 {[%emt 0:00:07]} 20. Nxf7 {[%emt 0:13:57]} (20. Bxf7+ $6 Rxf7 (20... Kh8 $2 21. Qg6 $18) 21. Qxf7+ Kh8 $11) 20... Rxf7 {[%emt 0:01:52]} (20... Qxd2 $2 21. Nxh6+ Kh7 22. Ng8+ $18) (20... Bxf2+ 21. Kh2 Qh4 (21... Qxd2 $2 22. Nxh6+ Kh7 23. Ng8+ $18) (21... Bg3+ $2 22. Kxg3 Qd3+ 23. Kh2 $18) 22. Nxe5+ Kh7 23. Qg6+ Kh8 24. Bc2 $16) 21. Bxf7+ {[%emt 0:02:45]} Kf8 {[%emt 0:00:33] [#]} 22. Bb3 $1 {[%emt 0:01:25]} Bd5 {[%emt 0:04:05] Es drohte Qf7+} (22... Bxf2+ $2 23. Kh1 Bd5 24. Qf5+ Kg8 25. Bxd5+ Qxd5 26. Qxf2 $18) 23. Qf5+ {[%emt 0:01:17]} Kg8 {[%emt 0:00:44]} 24. Bc2 {[%emt 0:00:12][%cal Oa1e1]} Qe7 {[%emt 0:07:12]} (24... Qf6 $16 {war einen Versuch wert.}) 25. Re1 {[%emt 0:02:24]} Rf8 {[%emt 0:04:57]} 26. Qh7+ {[%emt 0:02:03]} (26. Qxe5 $2 Qxe5 (26... Bxf2+ $2 27. Kh2 $19) 27. Rxe5 Rxf2 $19 (27... Bxf2+ 28. Kh2 $11)) 26... Kf7 {[%emt 0:00:01]} 27. Qd3 {[%emt 0:10:01]} (27. Be3 $18 Bxe3 28. Rxe3) 27... Qe6 $16 {[%emt 0:03:17]} 28. Be3 {[%emt 0:01:15]} (28. Qh7 Qf6 29. Be3 Bxe3 30. Rxe3 Ke7 $14) 28... Bxe3 {[%emt 0:00:30]} 29. Rxe3 {[%emt 0:00:25]} Re8 {[%emt 0:01:45]} 30. Rg3 {[%emt 0:00:20]} e4 {[%emt 0:01:59]} 31. Qd4 {[%emt 0:02:05]} Qe5 {[%emt 0:00:06]} 32. Qa7 {[%emt 0:00:37]} Re6 {[%emt 0:00:36][%cal Be8e6,Be6f6,Bf6f8][%mdl 32]} 33. Bd1 {[%emt 0:02:23]} Rf6 {[%emt 0:01:38]} 34. Be2 {[%emt 0:04:18]} Kg8 {[%emt 0:00:35][%cal Bf7g8,Bg8h7,Bh7h8][%mdl 32]} 35. Bg4 {[%emt 0:01:22]} Kh7 {[%emt 0:00:51]} 36. Bc8 {[%emt 0:00:33]} Rf8 {[%emt 0:00:58]} 37. Qxa6 {[%emt 0:07:09][%cal Oc8d7]} e3 $2 {[%emt 0:00:01] Verliert die Partie.} 38. Qg6+ $18 {[%emt 0:00:15]} (38. Rxe3 Qf4 39. Rg3 (39. Qxb5 $2 Qxf2+ 40. Kh2 Qxg2#) (39. Re2 $2 Qc1+ 40. Kh2 Qf1 $19) 39... Qxf2+ 40. Kh2 c6 $16) 38... Kh8 {[%emt 0:00:49]} 39. Rxe3 {[%emt 0:00:01]} Qf4 {[%emt 0:00:09] [#]} 40. Rg3 $1 {[%emt 0:00:06][%csl Gg3][%cal Rg6g7,Be3g3,Bg3d3,Bd3d8][%mdl 32]} Qxf2+ {[%emt 0:00:45]} 41. Kh2 {[%emt 0:40:02]} Qf6 {[%emt 0:06:39]} 42. Qxf6 {[%emt 0:00:00]} Rxf6 {[%emt 0:01:19][%mdl 4096] Endspiel. KRB-KRB} 43. Rd3 {[%emt 0:00:00] Weiß steht klar auf Gewinn.} Bc6 {[%emt 0:03:41]} 44. Rd8+ {[%emt 0:00:00]} Kh7 {[%emt 0:00:01]} 45. a6 {[%emt 0:00:00][%cal Ba5a6,Ba6a7][%mdl 32] Droht Bb7 und aus.} Rf2 {[%emt 0:00:30]} 46. Bb7 {[%emt 0:00:00]} Rxg2+ {[%emt 0:00:05]} 47. Kh1 {[%emt 0:00:00]} Rd2+ {[%emt 0:00:53]} 48. Bxc6 {[%emt 0:00:00]} Rxd8 {[%emt 0:00:04]} 49. a7 {[%emt 0:00:00] Gewichteter Fehlerwert: Weiß=0.08 (makellos) /Schwarz=0.29 (präzise) .  Verlustzug:     	---       	Schwarz=1     Fehler:       	Weiß=1     	Schwarz=1     Ungenau:       	Weiß=1     	Schwarz=5     OK:         	Weiß=8     	Schwarz=13    Bester:       	Weiß=6     	Schwarz=5     Stark:        	Weiß=3     	Schwarz=1     Brilliant:      	Weiß=1     	---} ({Schwächer ist} 49. Bxb5 Rd5 50. b4 (50. a7 $2 Rd1+ 51. Kg2 Ra1 $19) 50... Kg6 $11 (50... Rxb5 $2 {zu gefräßig.} 51. a7 $18)) 1-0

[Event "Fagernes Chess GM-Swiss 2024"]
[Site "Fagernes"]
[Date "2024.03.29"]
[Round "7.8"]
[White "Trost, Edvin"]
[Black "Petkov, Momchil"]
[Result "1/2-1/2"]
[ECO "C79"]
[WhiteElo "2432"]
[BlackElo "2500"]
[Annotator "RC"]
[PlyCount "135"]
[EventDate "2024.03.25"]
[EventType "swiss"]
[EventCountry "NOR"]
[SourceTitle "playchess.com"]
[Source "ChessBase"]
[SourceQuality "1"]
[TimeControl "40/6000+30:2400+30"]

1. e4 {[%emt 0:00:13]} e5 {[%emt 0:00:58]} 2. Nf3 {[%emt 0:02:02]} Nc6 {[%emt 0:00:20]} 3. Bb5 {[%emt 0:00:06]} a6 {[%emt 0:00:08]} 4. Ba4 {[%emt 0:00:04]} Nf6 {[%emt 0:00:11]} 5. O-O {[%emt 0:00:07]} d6 {[%emt 0:00:33]} 6. Re1 {[%emt 0:02:15]} Bd7 {[%emt 0:01:50]} 7. c3 {[%emt 0:00:42]} g6 {[%emt 0:00:20]} 8. d4 {[%emt 0:02:15]} Bg7 {[%emt 0:00:25]} 9. h3 {[%emt 0:04:12]} O-O {[%emt 0:02:47]} 10. Bc2 {[%emt 0:00:02]} Re8 {[%emt 0:02:08]} 11. Nbd2 {[%emt 0:02:37]} a5 {[%emt 0:00:47]} 12. a4 {[%emt 0:01:55]} exd4 {[%emt 0:05:03]} 13. cxd4 {[%emt 0:09:48]} Nb4 {[%emt 0:00:59]} 14. Bb3 {[%emt 0:03:56]} Be6 {[%emt 0:06:51]} 15. e5 {[%emt 0:05:24]} Bxb3 {[%emt 0:12:36]} 16. Qxb3 {[%emt 0:00:44]} dxe5 {[%emt 0:01:59]} 17. dxe5 {[%emt 0:00:22]} Nd7 {[%emt 0:01:54]} 18. Nc4 {[%emt 0:25:00]} Nc5 {[%emt 0:02:30]} 19. Qc3 {[%emt 0:00:04]} Qd3 {[%emt 0:13:03]} 20. Be3 {[%emt 0:00:24]} Nd5 {[%emt 0:04:48]} 21. Qd4 {[%emt 0:04:56]} Qxd4 {[%emt 0:04:25]} 22. Bxd4 {[%emt 0:00:13]} Ne6 {[%emt 0:01:54]} 23. Rad1 {[%emt 0:14:10]} Red8 {[%emt 0:03:14]} 24. g3 {[%emt 0:00:55]} b6 {[%emt 0:03:44]} 25. b3 {[%emt 0:06:24]} Bh6 {[%emt 0:11:09]} 26. Bb2 {[%emt 0:09:16]} Nb4 {[%emt 0:03:51]} 27. Nd4 {[%emt 0:01:17]} Nxd4 {[%emt 0:03:40]} 28. Rxd4 {[%emt 0:00:01]} Rxd4 {[%emt 0:04:12]} 29. Bxd4 {[%emt 0:00:02]} Nc2 {[%emt 0:01:17]} 30. Re4 {[%emt 0:00:30]} Rd8 {[%emt 0:00:05]} 31. Bc3 {[%emt 0:02:09]} Rd3 {[%emt 0:00:55]} 32. e6 {[%emt 0:01:26]} fxe6 {[%emt 0:00:06]} 33. Be5 {[%emt 0:00:02]} Rd7 {[%emt 0:00:32]} 34. Bc3 {[%emt 0:00:42]} Rd3 {[%emt 0:04:42]} 35. Be5 {[%emt 0:00:04]} Rxb3 {[%emt 0:02:11]} 36. Bxc7 {[%emt 0:00:32]} Rb4 {[%emt 0:00:24]} 37. Rh4 {[%emt 0:01:27]} Bg7 {[%emt 0:04:03]} 38. Nxb6 {[%emt 0:11:39]} Bd4 {[%emt 0:00:08]} 39. Nc8 {[%emt 0:00:11]} Rxa4 {[%emt 0:05:06]} 40. Ne7+ {[%emt 0:00:22]} Kg7 {[%emt 0:03:32]} 41. Be5+ {[%emt 0:03:49]} Kf8 {[%emt 0:03:35]} 42. Bxd4 {[%emt 0:00:20]} Rxd4 {[%emt 0:06:50]} 43. Rxh7 {[%emt 0:00:15]} g5 {[%emt 0:07:30]} 44. Ng6+ {[%emt 0:06:07]} Kg8 {[%emt 0:00:10]} 45. Rc7 {[%emt 0:11:16]} Ne1 {[%emt 0:00:21]} 46. Kf1 {[%emt 0:04:20]} Re4 {[%emt 0:05:47]} 47. f4 {[%emt 0:06:34]} gxf4 {[%emt 0:04:25]} 48. Nxf4 {[%emt 0:00:05]} Nf3 {[%emt 0:01:37]} 49. Ra7 {[%emt 0:04:52]} e5 {[%emt 0:03:47]} 50. Nd5 {[%emt 0:02:09]} Rd4 {[%emt 0:01:28]} 51. Nf6+ {[%emt 0:00:20]} Kf8 {[%emt 0:00:03]} 52. Kf2 {[%emt 0:01:07]} Rd3 {[%emt 0:01:11]} 53. h4 {[%emt 0:01:51]} a4 {[%emt 0:03:44]} 54. h5 {[%emt 0:00:24]} Ng5 {[%emt 0:00:45]} 55. Nd7+ {[%emt 0:00:12]} Kg8 {[%emt 0:00:05]} 56. Nf6+ {[%emt 0:02:14]} Kf8 {[%emt 0:00:04]} 57. Nh7+ {[%emt 0:03:40]} Nxh7 {[%emt 0:00:04]} 58. Rxh7 {[%emt 0:00:02]} e4 {[%emt 0:01:01]} 59. Ra7 {[%emt 0:01:00]} Rf3+ {[%emt 0:02:07]} 60. Kg2 {[%emt 0:00:01]} a3 {[%emt 0:01:56]} 61. g4 {[%emt 0:01:14]} Kg8 {[%emt 0:00:11]} 62. h6 {[%emt 0:00:36]} Rf6 {[%emt 0:00:38]} 63. g5 {[%emt 0:00:30]} Rg6 {[%emt 0:00:19]} 64. Rxa3 {[%emt 0:00:18]} Rxg5+ {[%emt 0:00:03]} 65. Rg3 {[%emt 0:00:07]} Rxg3+ {[%emt 0:00:04]} 66. Kxg3 {[%emt 0:00:04]} Kh7 {[%emt 0:00:03]} 67. Kf4 {[%emt 0:00:03]} Kxh6 {[%emt 0:00:05]} 68. Kxe4 {[%emt 0:00:04]} 1/2-1/2

[Event "Fagernes Chess GM-Swiss 2024"]
[Site "Fagernes"]
[Date "2024.03.29"]
[Round "7.9"]
[White "Can, Isik"]
[Black "Ingebretsen, Jens E"]
[Result "1-0"]
[ECO "B33"]
[WhiteElo "2493"]
[BlackElo "2402"]
[Annotator "TA"]
[PlyCount "69"]
[EventDate "2024.03.25"]
[EventType "swiss"]
[EventCountry "NOR"]
[SourceTitle "playchess.com"]
[Source "ChessBase"]
[SourceQuality "1"]
[TimeControl "40/6000+30:2400+30"]

{[%evp 23,68,21,31,-29,-8,-26,0,0,0,0,12,6,0,0,2,8,0,9,14,24,31,24,24,27,116,119,264,266,410,394,322,148,884,928,853,752,986,979,662,237,916,854,29995,29996,29998,29999,29999]} 1. e4 {[%emt 0:08:03]} c5 {[%emt 0:00:11]} 2. Nf3 {[%emt 0:00:04][%cal Bg1f3,Bf3d4,Bd4b5,Bb5a3,Ba3c2][%mdl 32]} Nc6 {[%emt 0:00:05]} 3. d4 {[%emt 0:00:03]} cxd4 {[%emt 0:00:05]} 4. Nxd4 {[%emt 0:00:03]} Nf6 {[%emt 0:00:07]} 5. Nc3 {[%emt 0:00:04]} e5 {[%emt 0:00:07]} 6. Ndb5 {[%emt 0:00:02]} d6 {[%emt 0:00:06]} 7. Bg5 {[%emt 0:00:10]} a6 {[%emt 0:00:06]} 8. Na3 {[%emt 0:00:03]} b5 {[%emt 0:00:04]} 9. Nd5 {[%emt 0:00:05]} Be7 {[%emt 0:00:05]} 10. Bxf6 {[%emt 0:00:03]} Bxf6 {[%emt 0:00:06]} 11. c3 {[%emt 0:00:03]} Rb8 {[%emt 0:00:18]} 12. Nc2 {[%emt 0:00:05]} Bg5 {[%emt 0:00:03] [#]} 13. h4 {[%emt 0:00:03]} Bxh4 $11 {[%emt 0:04:22]} 14. a4 {[%emt 0:00:07]} Bg5 {[%emt 0:10:20]} 15. axb5 {[%emt 0:02:10] The position is equal.} axb5 {[%emt 0:00:16][%cal Ba6b5,Bb5b4][%mdl 32]} 16. Na3 {[%emt 0:00:03]} b4 {[%emt 0:05:46]} 17. Bb5 $1 {[%emt 0:18:49]} Bd7 {[%emt 0:03:07] A strong pair of Bishops.} 18. Nc4 {[%emt 0:00:05] Hoping for Qa4.} (18. Nxb4 $2 Nxb4 19. Bxd7+ Qxd7 $17) 18... O-O $132 {[%emt 0:01:00][%mdl 2048] Black is fighting back} 19. Nxd6 {[%emt 0:01:51]} bxc3 {[%emt 0:02:35]} 20. bxc3 {[%emt 0:02:26][%cal Bb2c3,Bc3c4][%mdl 32]} Ne7 {[%emt 0:25:08]} 21. Bxd7 {[%emt 0:27:16][%cal Od6f7] Nxf7! is the strong threat.} Nxd5 {[%emt 0:06:22] Black is weak on the light squares} 22. Qxd5 {[%emt 0:05:00]} Qxd7 {[%emt 0:01:14]} 23. O-O {[%emt 0:00:31]} Bf4 {[%emt 0:17:07] [#]} (23... Qe6 $11 {remains equal.}) 24. c4 $1 $16 {[%emt 0:04:47] White is more active.} Rb2 {[%emt 0:14:41]} (24... h5 $16) 25. Ra8 $18 {[%emt 0:09:09] Black must now prevent Rxf8+.} g6 {[%emt 0:03:28]} (25... Rbb8 {might work better.} 26. Rxb8 Rxb8) 26. Rxf8+ {[%emt 0:07:35]} Kxf8 {[%emt 0:00:02] [#]} 27. Qa8+ {[%emt 0:00:05]} (27. g3 $1 $18 Bh6 28. Ra1 (28. Qxe5 Bg7 $18)) 27... Kg7 $2 {[%emt 0:05:18][%mdl 8192] Loses the game.} (27... Ke7 $16 28. c5 Rc2) 28. Ne8+ {[%emt 0:01:45]} Kh6 {[%emt 0:00:06][%cal Bg7h6,Bh6g5,Bg5g4,Bg4g3][%mdl 32]} 29. Nf6 {[%emt 0:00:06]} Qd6 {[%emt 0:02:12] Against Qf8+} 30. Qh8 {[%emt 0:00:59][%cal Og2g3] g3! would kill now.} Rb8 {[%emt 0:03:27]} 31. Qxh7+ {[%emt 0:01:30]} Kg5 {[%emt 0:00:00]} 32. Ng8 {[%emt 0:02:22]} Qf8 {[%emt 0:08:03]} 33. g3 $1 {[%emt 0:00:11][%csl Gg3][%cal Rh7h4] White mates.} Kg4 {[%emt 0:00:11]} 34. f3+ {[%emt 0:00:46]} Kxg3 {[%emt 0:00:10]} 35. Qh2# {[%emt 0:00:04] Weighted Error Value: White=0.19 (very precise) /Black=0.50.  Loses game:     	---       	Black=1      Missed win:     	White=1     	---        Mistake:       	---       	Black=3      Inaccurate:     	---       	Black=2      OK:         	White=7     	Black=3      Best:        	White=2     	Black=4      Strong:       	White=2     	---} 1-0